bitfinex-derivatives/quotes_SOLF0:USTF0_20250905
["timestamp","ask_amount","ask_price","bid_price","bid_amount"]
[1757075669436,7.45,208.32,208.08,67.2727]
[1757075669632,8.94809328,208.28,208.06,0.02]
[1757075669837,7.45,208.26,208.06,0.02]
[1757075670032,3.63285792,208.25,208.1,67.2672]
[1757075670335,7.45,208.26,208.16,67.2486]
[1757075670540,16.39809328,208.34,208.17,67.2452]
[1757075670741,16.39809328,208.34,208.17,67.2451]
[1757075671042,3.63196014,208.32,208.12,0.02]
[1757075671235,7.45,208.27,208.09,67.2709]
[1757075671435,3.63196014,208.26,208.1,4.3242]
[1757075671639,3.63196014,208.26,208.07,67.2776]
[1757075671839,3.63196014,208.26,208.11,67.2647]
[1757075672041,7.45,208.27,208.14,67.255]
[1757075672236,318.42809328,208.33,208.14,67.2545]
[1757075672538,7.45,208.34,208.18,67.2422]
[1757075672744,7.45,208.34,208.19,67.2385]
[1757075673137,7.45,208.34,208.17,67.2457]
[1757075673338,7.45,208.34,208.14,67.2545]
[1757075673533,3.63526696,208.33,208.14,4.3235]
[1757075673739,3.63526696,208.32,208.16,67.2487]
[1757075673947,3.63526696,208.31,208.13,67.2786]
[1757075674141,8.94809328,208.29,208.13,0.02]
[1757075674444,7.45,208.27,208.06,0.02]
[1757075674642,8.94809328,208.23,208.01,67.2966]
[1757075674940,135.08526696,208.22,208.06,67.2803]
[1757075675148,7.45,208.22,208.09,67.2717]
[1757075675342,7.45,208.3,208.15,67.2521]
[1757075675542,7.45,208.3,208.13,67.2585]
[1757075675741,3.63679317,208.29,208.19,4.3225]
[1757075675944,7.45,208.31,208.12,0.02]
[1757075676144,3.63708593,208.3,208.12,0.02]
[1757075676441,127.63708593,208.3,208.16,67.2465]
[1757075676748,7.45,208.31,208.14,4.3234]
[1757075676947,3.6367932,208.3,208.12,0.02]
[1757075677147,3.6367932,208.29,208.12,0.02]
[1757075677343,3.6367932,208.28,208.12,0.02]
[1757075677549,16.39809328,208.31,208.12,0.02]
[1757075677847,3.63707862,208.3,208.12,0.02]
[1757075678046,7.45,208.31,208.12,0.02]
[1757075678241,11.08785299,208.3,208.09,67.27]
[1757075678440,8.94809328,208.19,208.02,4.3259]
[1757075678647,7.45,208.12,207.96,5.20674079]
[1757075678846,3.64180686,208.11,207.96,5.20674079]
[1757075679046,3.64180686,208.1,207.96,3.90505559]
[1757075679243,8.94809328,208.19,207.96,71.21705559]
[1757075679439,3.64261787,208.18,208.03,67.2905]
[1757075679644,7.45,208.2,208.02,67.2926]
[1757075679841,3.64141995,208.19,208.0,67.3201]
[1757075680046,3.64141995,208.19,208.0,0.02]
[1757075680447,7.45,208.17,207.96,3.90505559]
[1757075680655,16.39809328,208.12,207.96,3.90505559]
[1757075680951,3.64141995,208.11,207.96,3.90505559]
[1757075681454,3.64141995,208.11,207.97,67.3095]
[1757075681654,7.45,208.21,208.01,4.326]
[1757075681949,3.64704336,208.2,207.98,0.02]
[1757075682146,3.64704336,208.19,207.99,67.3021]
[1757075682347,3.64704336,208.18,208.01,67.2964]
[1757075682552,7.45,208.21,208.01,67.2965]
[1757075682553,3.64704336,208.17,208.01,67.2965]
[1757075682853,3.64704336,208.16,207.98,0.02]
[1757075683043,3.64704336,208.15,208.0,67.2991]
[1757075683242,3.64704336,208.14,208.0,67.2991]
[1757075683448,7.45,208.28,208.09,0.02]
[1757075683648,3.65855826,208.27,208.13,67.2579]
[1757075683849,3.65855826,208.26,208.1,4.3242]
[1757075684050,3.65855826,208.25,208.1,67.2675]
[1757075684251,3.65855826,208.24,208.18,67.2425]
[1757075684444,5.826e-05,208.23,208.22,4.3217]
[1757075684654,8.94809328,208.46,208.22,67.2294]
[1757075684850,0.0326241,208.25,208.24,71.5433]
[1757075685050,0.0326241,208.25,208.24,4.3214]
[1757075685249,8.94809328,208.44,208.17,67.2446]
[1757075685451,0.03080558,208.27,208.26,4.3209]
[1757075685653,0.03080558,208.27,208.17,67.2452]
[1757075685849,7.45,208.38,208.18,4.30196265]
[1757075686052,7.45,208.38,208.19,4.30196265]
[1757075686248,7.45,208.38,208.22,67.2292]
[1757075686450,7.89496415,208.39,208.26,4.3209]
[1757075686651,7.89496415,208.39,208.27,4.30196265]
[1757075686853,7.45,208.33,208.08,67.2734]
[1757075687149,7.45,208.26,208.01,67.2973]
[1757075687352,7.45,208.26,208.05,67.2833]
[1757075687552,7.45,208.26,208.03,67.2906]
[1757075687756,7.45,208.26,208.05,67.2842]
[1757075687948,7.45,208.26,207.91,67.3294]
[1757075688151,7.45,208.26,208.08,67.2744]
[1757075688350,7.45,208.26,208.07,67.2774]
[1757075688351,8.94809328,208.22,208.07,67.2774]
[1757075688551,8.94809328,208.34,208.14,67.2548]
[1757075688756,8.94809328,208.34,208.09,67.2714]
[1757075688952,8.94809328,208.34,208.13,67.2586]
[1757075689154,8.94809328,208.21,207.85,1330.42505559]
[1757075689351,7.88,208.2,207.95,230.66]
[1757075689555,7.88,208.14,207.95,230.66]
[1757075689755,7.88,208.14,208.04,0.03191428]
[1757075690058,0.03467382,208.07,208.04,0.03191428]
[1757075691154,0.03467382,208.07,208.05,0.48]
[1757075691560,0.03467382,208.07,208.06,0.48]
[1757075691760,0.03467382,208.07,208.05,4.8053]
[1757075691961,7.88,208.28,208.06,67.2803]
[1757075692160,7.88,208.28,208.04,67.31931428]
[1757075692357,7.88,208.28,208.03,230.66]
[1757075692568,8.94809328,208.26,208.03,230.66]
[1757075692753,8.94809328,208.26,208.04,67.2857]
[1757075692953,7.88,208.28,208.06,67.2805]
[1757075693152,13.20313519,208.34,208.13,0.03181838]
[1757075693559,13.20313519,208.34,208.12,230.68]
[1757075693756,13.20313519,208.34,208.21,0.03640521]
[1757075693960,5.32313519,208.34,208.21,0.03640521]
[1757075694158,5.32313519,208.34,208.15,67.2491]
[1757075694358,5.32313519,208.34,208.25,0.03541085]
[1757075696766,0.03684817,208.32,208.08,297.9431]
[1757075696963,0.03684817,208.32,208.08,297.9432]
[1757075697271,5.32313519,208.34,208.08,230.67]
[1757075697562,129.32313519,208.34,208.08,297.9431]
[1757075697767,5.32313519,208.34,208.08,0.03]
[1757075697969,7.88,208.35,208.08,0.03]
[1757075697970,13.20313519,208.35,208.08,0.03]
[1757075698163,124.0,208.34,208.12,0.03]
[1757075698364,13.20313519,208.35,208.12,0.03]
[1757075698665,8.94809328,208.34,208.12,0.03]
[1757075699070,0.03351173,208.25,208.21,0.03654943]
[1757075699467,13.20313519,208.35,208.12,0.03]
[1757075700265,5.32313519,208.35,208.17,67.2436]
[1757075700471,5.32313519,208.35,208.22,67.2277]
[1757075700666,5.29313519,208.35,208.27,67.2119]
[1757075700860,5.29313519,208.35,208.24,376.6213]
[1757075701066,5.29313519,208.35,208.27,67.2114]
[1757075701269,5.29313519,208.35,208.3,67.2016]
[1757075701469,5.29313519,208.35,208.32,67.1946]
[1757075701470,3.519e-05,208.35,208.32,67.1946]
[1757075701671,3.519e-05,208.35,208.32,67.1953]
[1757075701866,3.519e-05,208.35,208.26,67.2136]
[1757075702069,3.519e-05,208.35,208.27,230.6]
[1757075702270,3.519e-05,208.35,208.28,230.6]
[1757075702776,3.519e-05,208.35,208.3,67.202]
[1757075702972,3.519e-05,208.35,208.3,67.2016]
[1757075703170,0.03469238,208.34,208.31,0.48]
[1757075703375,0.03469238,208.34,208.31,134.3967]
[1757075703674,0.03469238,208.34,208.32,298.2355]
[1757075703868,7.88,208.54,208.28,8.94809328]
[1757075704074,15.77496415,208.56,208.34,67.1882]
[1757075704275,15.77496415,208.56,208.37,4.3185]
[1757075704476,0.99467382,208.47,208.38,230.54]
[1757075704775,15.77496415,208.56,208.42,67.1627]
[1757075704776,7.89496415,208.56,208.42,67.1627]
[1757075704971,7.89496415,208.56,208.45,67.1537]
[1757075705178,7.89496415,208.56,208.46,230.54]
[1757075705376,7.89496415,208.56,208.41,309.28]
[1757075705678,0.99467382,208.5,208.42,230.54]
[1757075705880,0.99467382,208.52,208.41,309.28]
[1757075706075,7.89496415,208.56,208.46,0.03034931]
[1757075706373,7.88,208.47,208.41,309.28]
[1757075706578,0.99467382,208.42,208.35,230.52]
[1757075706774,0.03311411,208.49,208.36,0.03]
[1757075706979,67.1319,208.52,208.36,0.03]
[1757075707181,67.135,208.51,208.37,230.48]
[1757075707372,67.135,208.51,208.29,67.205]
[1757075707373,0.99467382,208.41,208.33,230.48]
[1757075707581,67.1546,208.45,208.33,230.48]
[1757075707783,15.77496415,208.56,208.33,297.7013]
[1757075708077,67.1227,208.55,208.33,230.51]
[1757075708284,7.88,208.51,208.33,0.03]
[1757075708481,4.3185,208.38,208.25,3.90505559]
[1757075708677,4.3185,208.38,208.26,230.46]
[1757075708873,67.1488,208.47,208.27,0.03]
[1757075709071,7.88,208.51,208.3,67.2019]
[1757075709072,4.3165,208.48,208.3,67.2019]
[1757075709273,75.0146,208.51,208.32,67.1952]
[1757075709477,0.99467382,208.47,208.31,0.03]
[1757075709677,0.99467382,208.42,208.32,230.44]
[1757075710180,4.3182,208.39,208.31,0.03]
[1757075710385,0.99467382,208.38,208.27,3.90505559]
[1757075710678,0.99467382,208.3,208.27,3.90505559]
[1757075710984,68.19267382,208.32,208.27,3.90505559]
[1757075711184,5.31487382,208.3,208.27,3.90505559]
[1757075711388,0.99467382,208.28,208.27,3.90505559]
[1757075711577,4.3213,208.24,208.23,4.21206697]
[1757075711890,67.2484,208.16,208.01,0.03]
[1757075712183,7.88,208.21,207.9,8.6568]
[1757075712184,7.88,208.05,207.91,322.17685198]
[1757075712378,67.2705,208.09,207.91,389.50425198]
[1757075712584,67.2705,208.09,207.91,322.17685198]
[1757075712784,67.2705,208.09,207.93,0.12]
[1757075712989,7.88,208.14,207.95,67.3131]
[1757075713191,7.88,208.14,207.98,67.3043]
[1757075713385,7.88,208.14,207.95,67.3132]
[1757075713586,7.88,208.14,207.97,67.3074]
[1757075713884,7.88,208.14,207.96,230.46]
[1757075714182,7.88,208.14,207.99,67.3013]
[1757075714484,7.88,208.21,208.01,67.2963]
[1757075714693,7.88,208.28,208.11,67.2629]
[1757075714885,7.88,208.28,208.12,67.2596]
[1757075715085,7.88,208.28,208.08,309.24]
[1757075715287,8.94809328,208.29,207.93,309.38]
[1757075715482,7.88,208.22,208.0,71.6257]
[1757075715681,7.88,208.22,208.07,67.2765]
[1757075715888,7.88,208.35,208.14,67.2539]
[1757075716086,7.88,208.35,208.1,67.2662]
[1757075716385,7.88,208.35,208.09,67.27]
[1757075716590,7.88,208.35,208.14,71.5755]
[1757075716792,7.89496415,208.39,208.25,67.2177]
[1757075716989,7.89496415,208.39,208.27,67.2117]
[1757075717183,7.88,208.38,208.16,67.2459]
[1757075717384,7.88,208.38,208.21,67.2303]
[1757075717592,8.94809328,208.38,208.12,67.3803]
[1757075717789,7.88,208.37,208.14,67.2523]
[1757075718090,7.88,208.37,208.24,67.2207]
[1757075718288,7.89496415,208.39,208.28,67.2088]
[1757075718593,7.99,208.38,208.22,67.2273]
[1757075718891,7.99,208.38,208.28,67.2079]
[1757075719096,7.99,208.49,208.29,297.7433]
[1757075719393,7.99,208.49,208.3,67.2016]
[1757075719584,7.99,208.49,208.3,67.2015]
[1757075719789,7.99,208.49,208.25,0.1]
[1757075719995,7.99,208.49,208.22,230.54]
[1757075720295,8.94809328,208.44,208.19,230.54]
[1757075720500,8.94809328,208.44,208.08,0.1]
[1757075720692,7.99,208.42,208.12,230.54]
[1757075720890,7.99,208.42,208.12,306.74709328]
[1757075721091,7.99,208.42,208.13,0.1]
[1757075721292,7.99,208.42,208.16,67.2474]
[1757075721490,7.99,208.42,208.18,4.3224]
[1757075721788,7.99,208.42,208.21,0.1]
[1757075721987,7.99,208.42,208.23,67.2224]
[1757075722192,7.99,208.42,208.15,230.52]
[1757075722391,7.99,208.42,208.2,0.1]
[1757075722794,8.94809328,208.44,208.15,230.52]
[1757075722990,8.94809328,208.44,208.11,309.4]
[1757075723191,7.99,208.42,208.11,309.4]
[1757075723394,14.4,208.43,208.11,309.4]
[1757075723587,7.99,208.43,208.11,309.4]
[1757075723792,7.99,208.43,208.18,67.2418]
[1757075724297,7.99,208.43,208.2,67.2339]
[1757075724498,7.99,208.43,208.19,8.94809328]
[1757075724994,7.99,208.47,208.17,0.1]
[1757075725193,7.99,208.43,208.11,309.3]
[1757075725393,230.52,208.45,208.11,309.3]
[1757075725594,7.99,208.45,208.16,8.94809328]
[1757075725894,22.39,208.47,208.14,0.1]
[1757075726099,36.82,208.47,208.14,0.1]
[1757075726297,23.34809328,208.42,208.11,309.3]
[1757075726493,7.99,208.35,208.11,309.3]
[1757075726888,7.99,208.35,208.16,67.2462]
[1757075727091,7.99,208.35,208.15,67.2515]
[1757075727286,7.99,208.35,208.16,4.323]
[1757075727492,7.99,208.47,208.15,0.1]
[1757075727694,7.99,208.49,208.16,230.54]
[1757075727894,317.19496415,208.5,208.16,230.54]
[1757075728092,7.99,208.49,208.15,0.1]
[1757075728297,7.99,208.49,208.2,67.2353]
[1757075728497,7.99,208.49,208.19,0.1]
[1757075728498,7.99,208.45,208.19,0.1]
[1757075728698,7.99,208.45,208.14,8.94809328]
[1757075728899,7.99,208.39,208.12,0.1]
[1757075729201,16.93809328,208.39,208.12,0.1]
[1757075729499,7.99,208.39,208.17,0.1]
[1757075729899,7.99,208.39,208.18,67.2417]
[1757075730099,7.99,208.39,208.17,67.3452]
[1757075730397,7.99,208.39,208.17,0.1]
[1757075730600,7.99,208.39,208.18,67.242]
[1757075730800,7.99,208.39,208.17,0.1]
[1757075731101,7.99,208.31,208.08,0.1]
[1757075731298,7.99,208.31,208.08,67.374]
[1757075731495,7.99,208.31,208.08,0.1]
[1757075731695,7.99,208.31,208.14,67.2548]
[1757075731895,7.99,208.49,208.19,67.2387]
[1757075732093,324.44359711,208.5,208.19,67.2382]
[1757075732299,67.1814,208.37,208.16,67.2485]
[1757075732502,7.99,208.38,208.18,67.2418]
[1757075732797,7.99,208.38,208.17,67.2438]
[1757075733006,67.1809,208.37,208.16,67.247]
[1757075733300,67.1912,208.34,208.14,67.3548]
[1757075733501,67.1844,208.36,208.17,4.3227]
[1757075733702,67.1884,208.35,208.17,4.3227]
[1757075733906,67.1809,208.37,208.16,67.247]
[1757075734100,67.1809,208.37,208.17,67.2453]
[1757075734298,7.99,208.38,208.17,67.2446]
[1757075734503,67.1566,208.45,208.25,67.219]
[1757075734698,67.1648,208.42,208.22,67.2288]
[1757075734998,67.1846,208.36,208.2,0.1]
[1757075735204,67.1974,208.32,208.15,230.56]
[1757075735399,67.1974,208.32,208.13,0.1]
[1757075735603,67.2038,208.3,208.13,0.1]
[1757075735901,67.2134,208.27,208.13,0.1]
[1757075736104,67.2042,208.3,208.13,0.1]
[1757075736299,67.2042,208.3,208.13,4.4236]
[1757075736500,67.2036,208.3,208.13,4.4236]
[1757075736696,268.7169,208.38,208.16,67.2482]
[1757075736697,67.1798,208.38,208.16,67.2482]
[1757075736904,67.1819,208.37,208.19,0.1]
[1757075737196,67.1974,208.32,208.13,67.2569]
[1757075737398,4.3204,208.29,208.16,4.323]
[1757075737601,67.2052,208.3,208.14,230.56]
[1757075737802,67.2074,208.29,208.14,230.56]
[1757075738104,4.3218,208.23,208.12,0.1]
[1757075738304,67.2278,208.23,208.06,0.1]
[1757075738502,67.2542,208.15,208.0,0.1]
[1757075738703,67.2493,208.16,208.0,0.1]
[1757075738900,67.2527,208.15,208.0,0.1]
[1757075739095,67.2493,208.16,208.0,0.1]
[1757075739297,67.2524,208.15,208.0,0.1]
[1757075739502,7.99,208.17,208.0,0.1]
[1757075740106,7.99,208.17,208.0,67.3979]
[1757075740405,7.99,208.27,208.01,4.326]
[1757075740802,22.41,208.27,208.0,0.1]
[1757075741003,7.99,208.27,208.08,67.2742]
[1757075741200,15.14359711,208.43,208.11,67.2626]
[1757075741506,7.99,208.37,208.13,67.2577]
[1757075741802,14.43,208.38,208.08,230.6]
[1757075741998,22.42,208.37,208.04,0.1]
[1757075742300,37.56359711,208.36,208.04,0.1]
[1757075742507,7.99,208.34,208.04,0.1]
[1757075742706,7.99,208.34,208.04,67.3871]
[1757075742901,238.59,208.35,208.04,0.1]
[1757075743196,7.99,208.28,207.95,0.1]
[1757075743703,7.99,208.27,208.01,67.2967]
[1757075743903,7.99,208.27,208.0,67.2998]
[1757075744507,7.99,208.27,207.99,0.1]
[1757075745210,14.42,208.25,207.92,0.1]
[1757075745403,7.99,208.2,207.85,0.1]
[1757075745602,309.4,208.24,207.79,309.4]
[1757075745603,22.41,208.15,207.79,309.4]
[1757075745908,14.42,208.12,207.79,309.4]
[1757075746103,124.0,208.11,207.79,313.7307]
[1757075746406,7.99,208.08,207.79,309.4]
[1757075746601,7.99,208.07,207.79,309.4]
[1757075747409,7.99,208.07,207.87,67.3411]
[1757075747603,7.99,208.07,207.91,67.3291]
[1757075747800,7.99,208.07,207.89,0.1]
[1757075748402,7.99,208.07,207.89,67.4349]
[1757075748599,7.99,208.07,207.89,0.1]
[1757075748803,7.99,208.07,207.9,4.3285]
[1757075749008,7.99,208.07,207.89,0.1]
[1757075749311,7.99,208.07,207.89,67.4349]
[1757075749509,7.99,208.07,207.89,0.1]
[1757075750513,7.99,208.07,207.91,67.3277]
[1757075750708,7.99,208.07,207.89,0.1]
[1757075752515,7.99,208.07,207.83,67.3558]
[1757075752715,7.99,208.07,207.81,67.4619]
[1757075752910,7.99,208.07,207.84,67.3503]
[1757075753115,7.99,208.07,207.81,67.4619]
[1757075753315,22.22,208.08,207.81,0.1]
[1757075753516,7.8,208.07,207.81,67.4609]
[1757075753718,7.8,208.06,207.84,67.3517]
[1757075753907,7.8,208.06,207.85,67.349]
[1757075754112,7.8,208.06,207.81,0.1]
[1757075755512,7.8,208.06,207.93,67.3233]
[1757075755814,7.8,208.06,207.9,67.3322]
[1757075756010,124.0,208.16,207.9,67.3322]
[1757075756011,7.8,208.15,207.94,67.3198]
[1757075756312,7.8,208.15,207.9,67.3322]
[1757075756512,7.8,208.15,207.93,67.3234]
[1757075756712,7.8,208.15,207.91,67.3294]
[1757075757217,7.8,208.14,207.9,4.3284]
[1757075757515,36.65,208.14,207.89,0.1]
[1757075757713,7.8,208.12,207.89,0.1]
[1757075758217,67.2847,208.05,207.89,0.1]
[1757075758516,7.8,208.06,207.89,0.1]
[1757075758711,4.3257,208.04,207.9,4.3285]
[1757075758908,4.3257,208.04,207.89,0.1]
[1757075759213,7.8,208.06,207.93,4.3278]
[1757075759517,7.8,208.06,207.92,67.3251]
[1757075759718,7.8,208.06,207.91,67.3296]
[1757075759719,7.8,208.06,207.89,0.1]
[1757075760117,7.8,208.06,207.91,4.3282]
[1757075760317,7.8,208.0,207.8,0.1]
[1757075760514,67.3338,207.9,207.72,0.1]
[1757075760720,7.8,207.86,207.66,228.72]
[1757075761013,67.3499,207.85,207.65,0.1]
[1757075761211,67.3779,207.77,207.55,0.1]
[1757075761412,67.3956,207.71,207.47,0.1]
[1757075761611,4.333,207.69,207.49,4.337]
[1757075761813,67.3848,207.74,207.52,0.1]
[1757075762115,4.3334,207.67,207.52,0.1]
[1757075762317,7.8,207.67,207.45,0.1]
[1757075762510,7.8,207.67,207.47,67.4724]
[1757075762708,67.4149,207.65,207.45,0.1]
[1757075762915,7.8,207.67,207.49,67.4649]
[1757075763116,67.4175,207.64,207.44,0.1]
[1757075763315,67.4118,207.66,207.44,0.1]
[1757075763510,7.8,207.76,207.51,0.1]
[1757075763713,7.8,207.76,207.55,0.1]
[1757075764118,7.8,207.76,207.58,67.4353]
[1757075764415,7.8,207.84,207.64,67.4171]
[1757075764610,67.3729,207.78,207.61,0.1]
[1757075764821,67.3598,207.82,207.61,0.1]
[1757075765011,7.8,207.84,207.62,67.4229]
[1757075765317,7.8,207.91,207.74,67.3844]
[1757075765518,7.8,207.91,207.71,0.1]
[1757075766019,72.3023,208.0,207.77,67.375]
[1757075766217,7.8,207.99,207.84,67.3517]
[1757075766422,5.0,208.0,207.83,0.1]
[1757075766817,7.8,207.95,207.76,0.1]
[1757075767117,75.119,207.95,207.76,0.1]
[1757075767319,7.8,207.95,207.77,4.3312]
[1757075767516,67.3045,207.99,207.76,0.1]
[1757075767721,67.3244,207.93,207.76,0.1]
[1757075767914,67.327,207.92,207.7,227.1]
[1757075768113,67.3205,207.94,207.7,227.1]
[1757075768521,7.8,207.96,207.75,0.1]
[1757075769123,5.0,208.0,207.82,67.3584]
[1757075769324,5.0,208.0,207.86,67.3461]
[1757075769520,5.0,208.0,207.81,0.1]
[1757075770415,7.8,207.99,207.8,67.3649]
[1757075770614,7.8,207.99,207.73,0.1]
[1757075770615,7.8,207.99,207.72,0.1]
[1757075771014,5.0,208.0,207.72,4.4322]
[1757075771216,5.0,208.0,207.68,225.78]
[1757075771217,5.0,208.0,207.84,67.3523]
[1757075771423,5.0,208.0,207.83,0.1]
[1757075771823,5.0,208.0,207.75,67.3799]
[1757075771824,7.8,207.99,207.76,67.3784]
[1757075772122,7.8,207.99,207.75,67.4799]
[1757075772317,7.8,207.99,207.75,0.1]
[1757075772521,7.8,207.99,207.76,67.3784]
[1757075772726,7.8,207.99,207.8,67.3648]
[1757075772926,7.8,207.99,207.75,0.1]
[1757075773322,7.8,207.99,207.75,67.4818]
[1757075773523,332.12,207.99,207.66,134.8171]
[1757075773723,36.65,207.98,207.67,0.1]
[1757075773917,232.92,207.97,207.69,67.4012]
[1757075774124,7.8,207.95,207.73,0.1]
[1757075774722,7.8,207.98,207.66,0.1]
[1757075775033,7.8,207.96,207.66,0.1]
[1757075775221,22.22,207.94,207.66,0.1]
[1757075775423,67.3814,207.75,207.66,0.1]
[1757075775718,4.3319,207.74,207.63,309.88]
[1757075775922,67.3735,207.78,207.63,309.88]
[1757075776119,67.3597,207.82,207.65,0.1]
[1757075776321,7.8,207.83,207.66,67.4094]
[1757075776521,71.7121,207.75,207.63,309.88]
[1757075776726,67.3647,207.8,207.62,67.4222]
[1757075776921,67.3707,207.78,207.59,67.432]
[1757075777125,4.3323,207.72,207.58,0.1]
[1757075777322,67.3775,207.76,207.58,67.5346]
[1757075777527,12.1308,207.79,207.64,4.3337]
[1757075777731,4.3308,207.79,207.64,67.5158]
[1757075778028,71.6855,207.83,207.67,4.333]
[1757075778228,67.358,207.82,207.65,67.4131]
[1757075778422,67.3555,207.83,207.64,0.1]
[1757075778631,4.3302,207.82,207.67,4.3331]
[1757075778833,67.3647,207.8,207.64,0.1]
[1757075779129,71.6818,207.84,207.66,67.4098]
[1757075779328,7.9,207.93,207.76,67.3771]
[1757075779626,67.327,207.92,207.77,0.11]
[1757075779822,67.3483,207.85,207.7,0.11]
[1757075780018,67.3273,207.92,207.71,67.3935]
[1757075780224,67.3451,207.86,207.7,0.11]
[1757075780421,67.3416,207.87,207.7,0.11]
[1757075780723,4.3303,207.82,207.7,0.11]
[1757075780928,67.3572,207.82,207.7,0.11]
[1757075781125,67.373,207.77,207.66,309.98]
[1757075781428,67.3829,207.74,207.66,309.98]
[1757075781633,67.3829,207.74,207.53,67.4495]
[1757075781634,67.4055,207.67,207.56,222.31]
[1757075781826,4.333,207.68,207.56,222.31]
[1757075782019,4.333,207.68,207.51,309.98]
[1757075782020,67.4117,207.65,207.51,309.98]
[1757075782221,67.4052,207.67,207.51,309.98]
[1757075782421,67.4131,207.65,207.51,309.98]
[1757075782620,67.3996,207.69,207.51,309.98]
[1757075782825,4.333,207.68,207.51,314.3163]
[1757075783133,7.9,207.7,207.52,0.11]
[1757075783327,67.4039,207.68,207.52,0.11]
[1757075783532,67.4162,207.64,207.52,0.11]
[1757075783728,7.9,207.7,207.52,0.11]
[1757075783925,67.3906,207.72,207.53,67.4517]
[1757075784129,67.3906,207.72,207.52,0.11]
[1757075784329,67.3855,207.74,207.55,67.4452]
[1757075784629,67.4036,207.68,207.52,0.11]
[1757075784825,67.4066,207.67,207.52,0.11]
[1757075785033,67.4422,207.56,207.44,0.11]
[1757075785227,67.4617,207.5,207.36,0.11]
[1757075785431,4.3373,207.48,207.36,0.11]
[1757075785828,75.348,207.54,207.36,0.11]
[1757075786023,67.4758,207.46,207.33,310.04]
[1757075786222,67.5044,207.37,207.29,0.11]
[1757075786424,71.8876,207.24,207.01,0.11]
[1757075786633,67.5794,207.14,206.93,0.11]
[1757075786928,67.6016,207.07,206.83,0.11]
[1757075787128,67.6176,207.02,206.83,0.11]
[1757075787334,67.631,206.98,206.74,67.7083]
[1757075787531,67.6503,206.92,206.77,0.11]
[1757075787727,67.6257,207.0,206.77,0.11]
[1757075787927,7.9,207.01,206.77,0.11]
[1757075788130,67.5843,207.12,206.84,67.6724]
[1757075788426,7.9,207.13,206.92,0.11]
[1757075788629,7.9,207.13,206.93,222.74]
[1757075788927,7.9,207.13,206.92,0.11]
[1757075789132,7.9,207.23,206.94,67.6421]
[1757075789327,75.4465,207.24,206.92,0.11]
[1757075789631,7.9,207.17,206.99,67.6259]
[1757075789833,7.9,207.17,206.94,0.11]
[1757075790233,7.9,207.14,206.92,223.92]
[1757075790533,7.9,207.09,206.89,223.94]
[1757075790729,7.9,207.09,206.87,223.94]
[1757075790927,7.9,207.09,206.9,377.9161]
[1757075791128,7.9,207.09,206.95,67.6393]
[1757075791329,7.9,207.23,207.05,67.6065]